[Event "African Individual Chess-ch Open 2024"]
[Site "Accra"]
[Date "2024.03.13"]
[Round "1.7"]
[White "Sekyere, Kwame Frimpong"]
[Black "Kayonde, Andrew"]
[Result "1-0"]
[ECO "E01"]
[WhiteElo "1873"]
[BlackElo "2321"]
[Annotator "TA"]
[PlyCount "48"]
[EventDate "2024.03.13"]
[EventCountry "GHA"]
[SourceTitle "playchess.com"]
[Source "ChessBase"]
[SourceQuality "1"]
[TimeControl "5400+30"]

{[%evp 16,48,32,30,55,34,52,-4,66,-7,0,0,32,21,22,4,0,4,104,-3,48,58,68,65,69,64,91,79,64,68,72,78,222,224,217]} 1. c4 {[%emt 0:00:03]} Nf6 {[%emt 0:00:25]} 2. g3 {[%emt 0:00:04]} c6 {[%emt 0:02:19]} 3. Bg2 {[%emt 0:00:05]} d5 {[%emt 0:00:09]} 4. Nf3 {[%emt 0:00:04]} e6 {[%emt 0:01:15]} 5. O-O {[%emt 0:00:22]} Bd6 {[%emt 0:00:25]} 6. d4 {[%emt 0:02:14]} Nbd7 {[%emt 0:01:28]} 7. b3 {[%emt 0:03:16]} O-O {[%emt 0:00:52]} 8. Bb2 {[%emt 0:00:12]} Re8 {[%emt 0:02:11]} 9. Nc3 {[%emt 0:00:12]} dxc4 {[%emt 0:02:43]} 10. bxc4 {[%emt 0:00:10]} e5 {[%emt 0:00:18]} 11. d5 {[%emt 0:01:48]} (11. e3 $14) 11... Nb6 {[%emt 0:06:40]} (11... cxd5 $11 12. Nxd5 Nxd5) 12. Qb3 {[%emt 0:07:14]} (12. dxc6 $14 Nxc4 13. Nb5) 12... e4 {[%emt 0:15:53]} 13. Nd4 {[%emt 0:04:06]} Bc5 {[%emt 0:02:55]} 14. Rad1 {[%emt 0:00:30]} cxd5 {[%emt 0:04:13]} 15. Nxd5 {[%emt 0:03:41]} Nfxd5 {[%emt 0:09:23]} 16. cxd5 {[%emt 0:00:21]} Bd7 {[%emt 0:06:08] [#]} (16... Bg4 $11 {bleibt in der Remisbreite.}) 17. Nb5 {[%emt 0:09:53]} ({Der einzige Zug:} 17. Ne6 $1 $16 {[%cal Re6d8]} fxe6 18. dxe6 Bxe6 (18... Rxe6 $2 {verliert.} 19. Bh3 $18) 19. Rxd8 Bxb3 20. Rxa8 Nxa8 21. axb3) 17... Bxb5 {[%emt 0:04:03]} ({Vorzuziehen ist} 17... Rc8 $11) 18. Qxb5 $14 {[%emt 0:00:04]} Bd6 {[%emt 0:00:15]} 19. Bd4 {[%emt 0:01:40] Weiß steht aktiver.} f5 {[%emt 0:07:18]} 20. a4 {[%emt 0:04:20]} Qd7 {[%emt 0:02:41]} 21. Qxd7 {[%emt 0:02:13]} (21. Bxb6 Qxb5 22. axb5 axb6 $11) 21... Nxd7 {[%emt 0:00:46]} 22. Bh3 {[%emt 0:00:04] Das Läuferpaar ist gut.} g6 {[%emt 0:01:06][%cal Bg7g6,Bg6f5][%mdl 32]} 23. g4 {[%emt 0:00:09]} Rf8 {[%emt 0:00:33]} (23... f4 $16) 24. gxf5 $18 {[%emt 0:02:12]} gxf5 {[%emt 0:00:30] Gewichteter Fehlerwert: Weiß=0.23 (präzise) /Schwarz=0.38.  Fehler:       	Weiß=3     	Schwarz=4     Ungenau:       	---       	Schwarz=1     OK:         	Weiß=5     	Schwarz=4     Bester:       	Weiß=1     	---} 1-0

[Event "African Individual Chess-ch Open 2024"]
[Site "Accra"]
[Date "2024.03.13"]
[Round "1.8"]
[White "KIGIGHA, Bomo Lovet"]
[Black "Egbe, Kossi Thierry"]
[Result "1-0"]
[ECO "A16"]
[WhiteElo "2231"]
[BlackElo "1871"]
[Annotator "TA"]
[PlyCount "69"]
[EventDate "2024.03.13"]
[EventCountry "GHA"]
[SourceTitle "playchess.com"]
[Source "ChessBase"]
[SourceQuality "1"]
[TimeControl "5400+30"]

{[%evp 15,69,20,29,22,19,15,16,-12,-10,-22,-24,-16,-3,-13,0,-11,-8,-6,0,0,0,0,0,0,12,5,10,0,0,0,8,0,0,0,45,30,45,37,218,220,902,819,1189,1059,1160,1203,1214,1218,2508,2331,3275,1959,29984,29985,29977,5991]} 1. Nf3 {[%emt 0:00:06]} Nf6 {[%emt 0:01:33]} 2. c4 {[%emt 0:00:07]} g6 {[%emt 0:01:12]} 3. g3 {[%emt 0:00:24]} Bg7 {[%emt 0:01:57]} 4. Bg2 {[%emt 0:00:07]} d6 {[%emt 0:00:20]} 5. Nc3 {[%emt 0:00:10]} Nc6 {[%emt 0:03:14]} 6. O-O {[%emt 0:00:32]} O-O {[%emt 0:04:02]} 7. Rb1 {[%emt 0:00:18]} Bf5 {[%emt 0:04:57]} 8. d3 {[%emt 0:00:06]} Qd7 {[%emt 0:00:30]} 9. b4 {[%emt 0:01:16][%cal Bb2b4,Bb4b5][%mdl 32]} Bh3 {[%emt 0:06:01]} 10. b5 {[%emt 0:00:32][%cal Og2h3] [#] Bxh3! would now be deadly.} Nd8 {[%emt 0:00:21]} 11. Bb2 {[%emt 0:01:36] The position is equal.} e5 {[%emt 0:05:01]} 12. Re1 {[%emt 0:05:50]} Bxg2 {[%emt 0:00:50]} 13. Kxg2 {[%emt 0:00:02]} Ne6 {[%emt 0:06:21]} 14. e3 {[%emt 0:13:35]} a6 {[%emt 0:09:09]} 15. a4 {[%emt 0:00:57]} axb5 {[%emt 0:02:54]} 16. axb5 {[%emt 0:00:02]} Ra5 {[%emt 0:01:33]} 17. Ra1 {[%emt 0:03:07]} Rfa8 {[%emt 0:00:28]} 18. Rxa5 {[%emt 0:00:05]} Rxa5 {[%emt 0:00:27]} 19. Qc2 {[%emt 0:01:11]} Nc5 {[%emt 0:06:44]} 20. d4 {[%emt 0:14:14]} e4 {[%emt 0:03:19]} (20... exd4 {simplifies} 21. exd4 Ne6 22. h3 Ra8) 21. Ne5 {[%emt 0:10:44]} Qf5 {[%emt 0:07:06]} 22. dxc5 {[%emt 0:01:55][%cal Oc5c6] Black must now prevent c6!} dxe5 {[%emt 0:00:36]} 23. Qd2 {[%emt 0:07:54]} Qf3+ {[%emt 0:01:22]} 24. Kg1 {[%emt 0:00:08]} Ra8 {[%emt 0:00:52] Against Qd8+} 25. Nd5 $36 {[%emt 0:03:04][%mdl 2048] White is pushing.} Nxd5 {[%emt 0:05:13]} 26. cxd5 {[%emt 0:01:26][%cal Bc4d5,Bd5d6,Bd6c7][%mdl 32] aiming for c6.} Qg4 $2 {[%emt 0:02:29] [#] This move loses the game for Black.} (26... h5 $1 $14) 27. d6 $1 $18 {[%emt 0:04:41]} Rd8 $2 {[%emt 0:01:28]} (27... Qd7 28. Rc1 cxd6) 28. Qa5 {[%emt 0:04:13]} (28. dxc7 $2 {is the wrong capture.} Rxd2 29. Bc3 Rc2 $19) 28... Rc8 {[%emt 0:07:26]} 29. dxc7 {[%emt 0:02:32] Hoping for b6.} Qd7 {[%emt 0:02:21]} 30. b6 {[%emt 0:00:39]} Bf6 {[%emt 0:02:03]} 31. Qc3 {[%emt 0:00:40]} Qb5 {[%emt 0:05:31]} 32. Rd1 {[%emt 0:01:22][%cal Be1d1,Bd1d6,Bd6d8][%mdl 32]} Qe8 {[%emt 0:07:49]} 33. Rd6 {[%emt 0:02:33]} Bg7 {[%emt 0:01:16]} 34. Qd2 {[%emt 0:01:13]} Bf8 {[%emt 0:00:29]} 35. Rd8 {[%emt 0:00:11] Weighted Error Value: White=0.05 (flawless) /Black=0.50.  Loses game:     	---       	Black=1      Mistake:       	---       	Black=1      Inaccurate:     	White=1     	Black=2      OK:         	White=6     	Black=9      Best:        	White=2     	Black=1      Strong:       	White=1     	---} 1-0

[Event "African Individual Chess-ch Open 2024"]
[Site "Accra"]
[Date "2024.03.13"]
[Round "1.9"]
[White "Amoako Philip Selikem Yao"]
[Black "Abdulraheem Abdulrahman Akinto"]
[Result "0-1"]
[ECO "B26"]
[WhiteElo "1848"]
[BlackElo "2229"]
[Annotator "TA"]
[PlyCount "78"]
[EventDate "2024.03.13"]
[EventCountry "GHA"]
[SourceTitle "playchess.com"]
[Source "ChessBase"]
[SourceQuality "1"]
[TimeControl "5400+30"]

{[%evp 14,78,0,-15,-20,-15,-19,-33,0,-17,-1,-38,-58,-76,-83,-153,-25,-75,-76,-73,-78,-79,-79,-358,-343,-358,-366,-365,-375,-351,-356,-431,-428,-441,-441,-518,-518,-500,-498,-495,-489,-489,-481,-518,-505,-737,-691,-859,-851,-833,-842,-865,-856,-1026,-961,-1006,-988,-1528,-880,-1822,-1826,-29991,-29992,-29992,-29987,-29985,-29984]} 1. e4 {[%emt 0:00:05]} c5 {[%emt 0:00:58]} 2. Nc3 {[%emt 0:00:18]} Nc6 {[%emt 0:01:31]} 3. g3 {[%emt 0:00:11]} g6 {[%emt 0:00:26]} 4. Bg2 {[%emt 0:00:29]} Bg7 {[%emt 0:00:11]} 5. d3 {[%emt 0:00:21]} Rb8 {[%emt 0:00:38]} 6. Be3 {[%emt 0:00:34]} d6 {[%emt 0:00:25]} 7. Qd2 {[%emt 0:01:32]} b5 {[%emt 0:00:47]} 8. h3 {[%emt 0:02:19]} b4 {[%emt 0:00:54]} 9. Nd1 {[%emt 0:00:06]} a5 {[%emt 0:00:41]} 10. f4 {[%emt 0:01:19]} a4 {[%emt 0:03:30] Black is slightly better.} 11. Ne2 {[%emt 0:07:41]} a3 {[%emt 0:09:26]} 12. d4 {[%emt 0:10:30]} Ba6 {[%emt 0:10:10]} 13. e5 {[%emt 0:02:22]} Qc7 {[%emt 0:09:19]} 14. c3 {[%emt 0:18:27]} (14. bxa3 $142 Bxe2 (14... bxa3 15. Ndc3 $15) 15. Qxe2 Nxd4 (15... cxd4 16. Qa6 $15) 16. Bxd4 cxd4 17. exd6 Qxd6 18. Qc4) 14... e6 {[%emt 0:14:50]} (14... Nh6 $17 {Strongly threatening ...Nf5.} 15. bxa3 bxc3 (15... bxa3 16. O-O $17) 16. Ndxc3 Nf5) 15. exd6 {[%emt 0:05:53]} (15. d5 $11 bxc3 16. bxc3) 15... Qxd6 $17 {[%emt 0:00:50]} 16. dxc5 {[%emt 0:01:00]} Qxd2+ {[%emt 0:01:45]} 17. Bxd2 {[%emt 0:01:27]} Nge7 {[%emt 0:00:50] Black is more active.} 18. Rb1 $2 {[%emt 0:09:12][%mdl 8192] This costs White the game.} (18. b3 $17 {might work better.}) 18... Bd3 $19 {[%emt 0:01:25]} 19. Rc1 {[%emt 0:02:03]} axb2 {[%emt 0:01:39]} 20. Nxb2 {[%emt 0:02:23] [#]} Bxe2 {[%emt 0:00:16]} 21. Kxe2 {[%emt 0:01:03]} bxc3 {[%emt 0:00:19]} 22. Nc4 {[%emt 0:03:40]} cxd2 {[%emt 0:00:41]} 23. Nd6+ {[%emt 0:00:46]} Kd7 {[%emt 0:01:25]} 24. Kxd2 {[%emt 0:00:23]} Rb2+ {[%emt 0:04:57]} 25. Rc2 {[%emt 0:00:39]} Rxc2+ {[%emt 0:00:26]} 26. Kxc2 {[%emt 0:00:01]} Rb8 {[%emt 0:01:12] Dodges Rb1} 27. Nc4 {[%emt 0:10:13] Wards off Rb2+} Rb5 {[%emt 0:03:49]} 28. Rd1+ {[%emt 0:01:46]} Kc7 {[%emt 0:02:39]} 29. Nd6 {[%emt 0:01:22]} Rb2+ {[%emt 0:01:04]} 30. Kd3 {[%emt 0:02:14]} Rxg2 {[%emt 0:00:57]} 31. Ne8+ {[%emt 0:00:25]} Kd7 {[%emt 0:01:34]} 32. Nxg7 {[%emt 0:00:13]} Rxg3+ {[%emt 0:00:44]} 33. Kc4+ {[%emt 0:00:52]} Nd5 {[%emt 0:00:16]} 34. f5 {[%emt 0:02:21]} Ke7 {[%emt 0:02:25] [#] aiming for ...Ne3+.} 35. Re1 {[%emt 0:02:55]} Rc3+ {[%emt 0:01:17]} 36. Kb5 {[%emt 0:00:34]} Nd4+ {[%emt 0:00:14]} 37. Ka4 {[%emt 0:02:52]} Rc4+ {[%emt 0:05:08] Black mates.} 38. Ka5 {[%emt 0:00:50]} Rxc5+ {[%emt 0:00:18]} 39. Ka4 {[%emt 0:01:21]} Rc8 {[%emt 0:03:30] Weighted Error Value: White=0.70/Black=0.09 (flawless) .  Loses game:     	White=1     	---        Mistake:       	White=2     	Black=1      Inaccurate:     	White=2     	Black=1      OK:         	White=2     	Black=11     Best:        	White=2     	Black=3} 0-1

[Event "African Individual Chess-ch Open 2024"]
[Site "Accra"]
[Date "2024.03.13"]
[Round "1.10"]
[White "Wanyama, Harold"]
[Black "Akpa Prince"]
[Result "1-0"]
[ECO "B09"]
[WhiteElo "2226"]
[BlackElo "1845"]
[Annotator "TA"]
[PlyCount "85"]
[EventDate "2024.03.13"]
[EventCountry "GHA"]
[SourceTitle "playchess.com"]
[Source "ChessBase"]
[SourceQuality "1"]
[TimeControl "5400+30"]

{[%evp 14,85,1,2,35,28,57,43,69,55,60,36,81,80,123,66,60,54,69,65,70,75,55,33,47,48,141,121,160,123,129,120,142,131,138,139,231,256,262,242,245,197,284,229,281,280,221,2,251,251,251,240,413,432,341,304,1514,1482,1274,797,2077,3247,2443,594,1306,985,6179,5202,29981,29982,29981,29982,29981,29982]} 1. d4 {[%emt 0:00:09]} g6 {[%emt 0:00:22]} 2. e4 {[%emt 0:00:08]} d6 {[%emt 0:00:20]} 3. Nc3 {[%emt 0:00:25]} Nf6 {[%emt 0:00:41]} 4. f4 {[%emt 0:00:10]} Bg7 {[%emt 0:00:21]} 5. Nf3 {[%emt 0:00:09]} O-O {[%emt 0:01:31]} 6. Bc4 {[%emt 0:00:54]} Nxe4 {[%emt 0:05:40]} 7. Bxf7+ {[%emt 0:00:35]} Rxf7 {[%emt 0:00:14]} 8. Nxe4 {[%emt 0:00:06]} c6 {[%emt 0:02:40]} 9. O-O {[%emt 0:00:29]} h6 {[%emt 0:04:05]} 10. Ng3 {[%emt 0:01:16]} Nd7 {[%emt 0:01:59] White is slightly better.} 11. Qd3 {[%emt 0:00:44]} Nf8 {[%emt 0:00:59]} 12. Nh4 {[%emt 0:01:09]} e5 {[%emt 0:11:13]} 13. Nxg6 {[%emt 0:01:05]} exd4 {[%emt 0:00:24]} 14. Bd2 {[%emt 0:07:27]} (14. Nxf8 $1 $16 {And now Ng6 would win.} Qxf8 15. Bd2) 14... Nxg6 $14 {[%emt 0:05:53]} 15. Qxg6 {[%emt 0:00:13]} Qf6 {[%emt 0:00:27]} 16. Qd3 {[%emt 0:01:00] White has more active pieces.} Bf5 {[%emt 0:00:32]} 17. Nxf5 {[%emt 0:03:15]} Qxf5 {[%emt 0:00:02]} 18. Rae1 {[%emt 0:00:12]} Qxd3 {[%emt 0:01:48]} 19. cxd3 {[%emt 0:00:07]} Kf8 {[%emt 0:00:39]} ({Black should try} 19... d5 $14) 20. f5 {[%emt 0:01:07]} Re8 {[%emt 0:01:11]} 21. g4 {[%emt 0:04:16]} (21. f6 $6 Rxf6 (21... Rxe1 $2 22. fxg7+ Kxg7 23. Rxe1 $18) 22. Rxf6+ Bxf6 $14) 21... Rxe1 {[%emt 0:00:42]} 22. Rxe1 $16 {[%emt 0:00:09][%mdl 4096] Endgame. KRB-KRB} Re7 {[%emt 0:00:19]} 23. Kg2 {[%emt 0:02:40]} Rxe1 {[%emt 0:00:40]} 24. Bxe1 {[%emt 0:00:17] KB-KB} b5 {[%emt 0:00:30]} (24... d5 $16 {was necessary.}) 25. Kf3 $18 {[%emt 0:00:16]} c5 {[%emt 0:02:34]} 26. Ke4 {[%emt 0:06:38]} c4 {[%emt 0:01:52]} 27. Bd2 {[%emt 0:02:41]} c3 {[%emt 0:00:59]} (27... Kf7 {was called for.} 28. Bc1 Ke7) 28. Bc1 {[%emt 0:00:11]} Ke7 {[%emt 0:01:05]} 29. h4 {[%emt 0:00:35]} Kf7 {[%emt 0:03:33][%cal Oh6h5] [#]} 30. Kd5 $2 {[%emt 0:02:38]} (30. bxc3 $1 $18 dxc3 31. g5) 30... Bf6 $2 {[%emt 0:02:29] A mistake that costs the game.} (30... h5 $1 $11 31. g5 (31. Kxd6 $2 hxg4 32. bxc3 dxc3 $19) (31. gxh5 Bh6 $17) 31... Be5 32. g6+ (32. bxc3 dxc3 33. d4 Bg3 $11) 32... Kf6 33. bxc3 Kxf5 34. cxd4 Bh8) 31. bxc3 {[%emt 0:03:25]} (31. Kxd6 Bxh4 32. bxc3 (32. Bxh6 $2 cxb2 33. Kd7 b1=Q $19) 32... dxc3 33. Bxh6 Kf6 $11) 31... dxc3 {[%emt 0:00:20] [#]} 32. g5 $1 {[%emt 0:00:29]} (32. Bxh6 Bxh4 33. g5 (33. Kxd6 Kf6 $11) 33... Ke7 $11) 32... hxg5 {[%emt 0:00:34]} (32... Be7 {was worth a try.} 33. Be3 (33. gxh6 Bxh4 34. Kxd6 a5 $16) (33. g6+ Kg7 $11) 33... hxg5 34. hxg5 (34. Bxa7 $2 gxh4 35. Ke4 h3 $19) 34... c2) 33. hxg5 {[%emt 0:00:05]} Be5 {[%emt 0:00:03]} 34. Kc6 {[%emt 0:00:12]} (34. d4 Bg7 35. f6 (35. Kxd6 Bxd4 36. Kc6 a6 $16) 35... Bf8 $18) 34... a6 {[%emt 0:00:53]} (34... b4 $6 35. Kb5 b3 36. axb3 $16) (34... Bg3 35. Kxb5 Be1) 35. Kb6 {[%emt 0:00:34]} Bg3 {[%emt 0:02:10]} 36. Kxa6 {[%emt 0:02:05]} Be1 {[%emt 0:01:16]} 37. Kxb5 {[%emt 0:00:27]} Bd2 {[%emt 0:00:02]} 38. g6+ {[%emt 0:00:16]} (38. Kb4 $142 Bxc1 39. g6+ Kf6 40. Kxc3) 38... Kf6 {[%emt 0:01:24]} 39. Ba3 {[%emt 0:00:33] Strongly threatening Kc4.} c2 {[%emt 0:02:38]} 40. Bb2+ {[%emt 0:03:08]} (40. Bxd6 c1=Q (40... c1=B $2 41. Be5+ Kxf5 42. g7 $18) 41. Bc5 Qb2+ (41... Kxf5 $2 42. a4 $19) 42. Kc6 Kxf5 $19) 40... Kxf5 {[%emt 0:01:32]} 41. g7 {[%emt 0:00:20] White mates.} Bc3 {[%emt 0:02:21]} 42. g8=Q {[%emt 0:00:10]} (42. g8=R Bxb2 43. Rg1 c1=Q $19 (43... c1=B 44. a4 $11) (43... c1=R $2 44. Rg2 $19)) 42... Bxb2 {[%emt 0:00:03]} 43. Qc8+ {[%emt 0:00:14] Weighted Error Value: White=0.54/Black=0.58.  Loses game:     	---       	Black=1      Missed win:     	White=1     	---        Mistake:       	White=1     	Black=5      Inaccurate:     	---       	Black=6      OK:         	White=6     	Black=8      Best:        	White=1     	Black=2      Strong:       	White=1     	---} 1-0

[Event "African Individual Chess-ch Open 2024"]
[Site "Accra"]
[Date "2024.03.13"]
[Round "1.12"]
[White "Agnelo, Amorim"]
[Black "Ameku, David Selasi"]
[Result "1-0"]
[ECO "B11"]
[WhiteElo "2219"]
[BlackElo "1839"]
[Annotator "RC"]
[PlyCount "107"]
[EventDate "2024.03.13"]
[EventCountry "GHA"]
[SourceTitle "playchess.com"]
[Source "ChessBase"]
[SourceQuality "1"]
[TimeControl "5400+30"]

1. e4 {[%emt 0:00:04]} c6 {[%emt 0:00:05]} 2. Nf3 {[%emt 0:01:10]} d5 {[%emt 0:00:13]} 3. Nc3 {[%emt 0:00:03]} Bg4 {[%emt 0:05:49]} 4. h3 {[%emt 0:02:34]} Bxf3 {[%emt 0:12:14]} 5. Qxf3 {[%emt 0:00:04]} e6 {[%emt 0:01:22]} 6. exd5 {[%emt 0:03:50]} cxd5 {[%emt 0:00:28]} 7. Bb5+ {[%emt 0:03:44]} Nd7 {[%emt 0:00:35]} 8. O-O {[%emt 0:00:12]} Ngf6 {[%emt 0:00:10]} 9. Re1 {[%emt 0:00:19]} Be7 {[%emt 0:00:40]} 10. d4 {[%emt 0:02:24]} O-O {[%emt 0:00:07]} 11. Bd3 {[%emt 0:00:39]} a6 {[%emt 0:03:42]} 12. Ne2 {[%emt 0:03:53]} Re8 {[%emt 0:11:44]} 13. Bf4 {[%emt 0:02:25]} Qb6 {[%emt 0:05:18]} 14. a4 {[%emt 0:01:41]} Bd6 {[%emt 0:01:08]} 15. Bxd6 {[%emt 0:07:09]} Qxd6 {[%emt 0:00:07]} 16. Ng3 {[%emt 0:00:31]} Rac8 {[%emt 0:03:52]} 17. c3 {[%emt 0:05:20]} Qb6 {[%emt 0:03:42]} 18. Reb1 {[%emt 1:03:28]} Qc7 {[%emt 0:02:47]} 19. Nf1 {[%emt 0:00:00]} a5 {[%emt 0:01:33]} 20. Bb5 {[%emt 0:00:00]} Red8 {[%emt 0:00:26]} 21. Ne3 {[%emt 0:00:00]} Ne4 {[%emt 0:01:05]} 22. Rd1 {[%emt 0:00:00]} Ndf6 {[%emt 0:01:00]} 23. Ng4 {[%emt 0:00:00]} Nxg4 {[%emt 0:00:55]} 24. Qxg4 {[%emt 0:00:00]} Qb6 {[%emt 0:00:09]} 25. Rab1 {[%emt 0:00:00]} Nd6 {[%emt 0:04:07]} 26. Bd3 {[%emt 0:00:00]} Qb3 {[%emt 0:00:35]} 27. Qe2 {[%emt 0:00:00]} Nc4 {[%emt 0:10:48]} 28. Bc2 {[%emt 0:00:00]} Qb6 {[%emt 0:00:16]} 29. Rd3 {[%emt 0:00:00]} g6 {[%emt 0:01:35]} 30. Rg3 {[%emt 0:00:00]} Qd6 {[%emt 0:02:07]} 31. Bd3 {[%emt 0:00:00]} Rc7 {[%emt 0:01:21]} 32. h4 {[%emt 0:00:00]} Qf4 {[%emt 0:05:03]} 33. h5 {[%emt 0:00:00]} Kg7 {[%emt 0:01:04]} 34. Rg4 {[%emt 0:00:00]} Qd6 {[%emt 0:00:40]} 35. Re1 {[%emt 0:00:00]} Rb8 {[%emt 0:01:16]} 36. Rg3 {[%emt 0:00:00]} Re8 {[%emt 0:00:35]} 37. b3 {[%emt 0:00:00]} Nb6 {[%emt 0:00:25]} 38. Bc2 {[%emt 0:00:00]} Rec8 {[%emt 0:00:41]} 39. hxg6 {[%emt 0:00:00]} hxg6 {[%emt 0:00:17]} 40. Bxg6 {[%emt 0:00:00]} Rxc3 {[%emt 0:15:32]} 41. Bd3+ {[%emt 0:02:29]} Kf8 {[%emt 0:01:02]} 42. Qg4 {[%emt 0:01:15]} Nd7 {[%emt 0:01:48]} 43. Qg7+ {[%emt 0:00:00]} Ke7 {[%emt 0:00:00]} 44. Rf3 {[%emt 0:00:00]} Rf8 {[%emt 0:00:00]} 45. Bf5 {[%emt 0:00:00]} Rxf3 {[%emt 0:02:20]} 46. Rxe6+ {[%emt 0:00:00]} Qxe6 {[%emt 0:00:09]} 47. Bxe6 {[%emt 0:00:00]} Kxe6 {[%emt 0:00:05]} 48. gxf3 {[%emt 0:00:00]} Rc8 {[%emt 0:00:19]} 49. Qg4+ {[%emt 0:00:00]} Ke7 {[%emt 0:00:37]} 50. Qf5 {[%emt 0:00:00]} Nb6 {[%emt 0:01:24]} 51. Qd3 {[%emt 0:00:00]} Rc1+ {[%emt 0:01:22]} 52. Kg2 {[%emt 0:00:00]} Rc6 {[%emt 0:00:03]} 53. Qb5 {[%emt 0:00:00]} Kd8 {[%emt 0:01:45]} 54. Qxa5 {[%emt 0:00:00]} 1-0

[Event "African Individual Chess-ch Open 2024"]
[Site "Accra"]
[Date "2024.03.13"]
[Round "1.13"]
[White "Mills-Pappoe, Benjamin Adoayi"]
[Black "Aikhoje, Odion"]
[Result "0-1"]
[ECO "B02"]
[WhiteElo "1773"]
[BlackElo "2215"]
[Annotator "RC"]
[PlyCount "50"]
[EventDate "2024.03.13"]
[EventCountry "GHA"]
[SourceTitle "playchess.com"]
[Source "ChessBase"]
[SourceQuality "1"]
[TimeControl "5400+30"]

1. e4 {[%emt 0:00:31]} Nf6 {[%emt 0:01:14]} 2. Nc3 {[%emt 0:00:33]} d5 {[%emt 0:00:51]} 3. exd5 {[%emt 0:04:48]} Nxd5 {[%emt 0:00:36]} 4. Bc4 {[%emt 0:01:04]} Nb6 {[%emt 0:01:24]} 5. Bb3 {[%emt 0:01:03]} c5 {[%emt 0:00:20]} 6. Qe2 {[%emt 0:04:52]} Nc6 {[%emt 0:03:25]} 7. Nf3 {[%emt 0:11:02]} e6 {[%emt 0:03:46]} 8. O-O {[%emt 0:02:44]} Na5 {[%emt 0:03:08]} 9. d3 {[%emt 0:01:33]} Be7 {[%emt 0:00:34]} 10. Bd2 {[%emt 0:01:56]} O-O {[%emt 0:00:56]} 11. h3 {[%emt 0:09:11]} Nxb3 {[%emt 0:02:59]} 12. axb3 {[%emt 0:00:02]} Nd5 {[%emt 0:02:19]} 13. Rfe1 {[%emt 0:05:34]} Nb4 {[%emt 0:01:12]} 14. Bf4 {[%emt 0:06:51]} f6 {[%emt 0:01:07]} 15. Ne4 {[%emt 0:05:16]} e5 {[%emt 0:05:29]} 16. Be3 {[%emt 0:08:08]} b6 {[%emt 0:01:51]} 17. Rec1 {[%emt 0:01:03]} f5 {[%emt 0:06:10]} 18. Nxe5 {[%emt 0:09:10]} Qd5 {[%emt 0:08:17]} 19. Bf4 {[%emt 0:13:03]} fxe4 {[%emt 0:01:16]} 20. dxe4 {[%emt 0:00:19]} Qe6 {[%emt 0:00:19]} 21. Bg3 {[%emt 0:01:18]} Bf6 {[%emt 0:01:35]} 22. Nd3 {[%emt 0:01:10]} Nxd3 {[%emt 0:00:51]} 23. cxd3 {[%emt 0:00:06]} Bd4 {[%emt 0:06:54]} 24. Qc2 {[%emt 0:02:23]} Qf7 {[%emt 0:00:27]} 25. Qc4 {[%emt 0:00:34]} Be6 {[%emt 0:00:18]} 0-1

[Event "African Individual Chess-ch Open 2024"]
[Site "Accra"]
[Date "2024.03.15"]
[Round "2.1"]
[White "Amin, Bassem"]
[Black "Agnelo, Amorim"]
[Result "*"]
[ECO "C54"]
[WhiteElo "2670"]
[BlackElo "2219"]
[Annotator "TA"]
[PlyCount "26"]
[EventDate "2024.03.13"]
[EventCountry "GHA"]
[SourceTitle "playchess.com"]
[Source "ChessBase"]
[SourceQuality "1"]
[TimeControl "5400+30"]

{[%evp 12,26,23,16,19,17,35,24,29,11,17,10,12,0,1,-11,-12]} 1. e4 {[%emt 0:00:23]} e5 {[%emt 0:10:50]} 2. Nf3 {[%emt 0:01:13]} Nc6 {[%emt 0:00:47]} 3. Bc4 {[%emt 0:00:16]} Bc5 {[%emt 0:01:17]} 4. c3 {[%emt 0:00:17]} Nf6 {[%emt 0:01:13]} 5. d3 {[%emt 0:00:08]} d6 {[%emt 0:00:18]} 6. O-O {[%emt 0:00:09]} O-O {[%emt 0:00:15]} 7. Re1 {[%emt 0:00:39]} Bb6 {[%emt 0:03:52]} 8. h3 {[%emt 0:00:42]} Ne7 {[%emt 0:00:45]} 9. Nbd2 {[%emt 0:01:03]} Ng6 {[%emt 0:00:10][%cal Oc8h3] White has an edge.} 10. Nf1 {[%emt 0:00:17]} c6 {[%emt 0:00:28] The position is equal.} 11. Bb3 {[%emt 0:00:07]} Be6 {[%emt 0:00:30]} 12. Bc2 {[%emt 0:00:23]} d5 {[%emt 0:04:05]} 13. exd5 {[%emt 0:00:34]} Nxd5 {[%emt 0:00:33] An uneventful encounter.   Weighted Error Value: White=0.06 (flawless) /Black=0.05 (flawless) .  OK:         	White=3     	Black=2} *

[Event "African Individual Chess-ch Open 2024"]
[Site "Accra"]
[Date "2024.03.15"]
[Round "2.2"]
[White "Aikhoje, Odion"]
[Black "Bellahcene, Bilel"]
[Result "*"]
[ECO "D02"]
[WhiteElo "2215"]
[BlackElo "2522"]
[Annotator "TA"]
[PlyCount "25"]
[EventDate "2024.03.13"]
[EventCountry "GHA"]
[SourceTitle "playchess.com"]
[Source "ChessBase"]
[SourceQuality "1"]
[TimeControl "5400+30"]

{[%evp 14,25,-25,-23,-32,-35,-21,-29,-8,-9,0,-19,-12,-25]} 1. Nf3 {[%emt 0:12:27]} Nf6 {[%emt 0:00:05]} 2. d4 {[%emt 0:00:30]} d5 {[%emt 0:00:05]} 3. Bf4 {[%emt 0:01:31]} c5 {[%emt 0:00:26]} 4. c3 {[%emt 0:00:13]} Nc6 {[%emt 0:00:03]} 5. e3 {[%emt 0:00:20]} Qb6 {[%emt 0:00:04]} 6. Qb3 {[%emt 0:06:13]} c4 {[%emt 0:00:05]} 7. Qc2 {[%emt 0:00:10]} Bf5 {[%emt 0:00:04]} 8. Qc1 {[%emt 0:00:06]} (8. Qxf5 $2 {is the wrong capture.} Qxb2 9. Bxc4 dxc4 $19 (9... Qxa1 10. O-O $15)) 8... Nh5 {[%emt 0:00:03]} 9. Bg3 {[%emt 0:00:10]} Nxg3 {[%emt 0:00:08]} 10. hxg3 {[%emt 0:00:08]} e6 {[%emt 0:00:06]} 11. Nbd2 {[%emt 0:00:08][%cal Oe3e4] The position is equal.} h5 {[%emt 0:00:03]} 12. e4 {[%emt 0:07:00]} dxe4 {[%emt 0:00:27]} ({Don't play} 12... Bxe4 13. Nxe4 dxe4 14. Nd2 $11) 13. Nxc4 {[%emt 0:00:45] Not much happened in this game.   Weighted Error Value: White=0.04 (flawless) /Black=0.08 (flawless) .  OK:         	White=3     	Black=1} *